[Event "*** Titled Tuesday Blitz"]
[Site "Chess.com"]
[Date "2018.04.03"]
[Round "8"]
[White "biostatistician"]
[Black "Danny_The_Donkey"]
[Result "0-1"]
[WhiteElo "2458"]
[BlackElo "2649"]
[TimeControl "180+2"]
[EndTime "14:45:40 PDT"]
[Termination "Danny_The_Donkey won by resignation"]

1. d4 {[%clk 0:02:22.1]} 1... Nf6 {[%clk 0:02:59.1]} 2. Nf3 {[%clk 0:02:19.6]}
2... e6 {[%clk 0:03:00.3]} 3. c4 {[%clk 0:02:18.9]} 3... Bb4+ {[%clk 0:02:59.8]}
4. Nbd2 {[%clk 0:02:18.8]} 4... d5 {[%clk 0:02:58.3]} 5. a3 {[%clk 0:02:19.2]}
5... Be7 {[%clk 0:02:57.6]} 6. e3 {[%clk 0:02:19.5]} 6... O-O {[%clk 0:02:58.7]}
7. b3 {[%clk 0:02:18.4]} 7... b6 {[%clk 0:02:59.9]} 8. Bb2 {[%clk 0:02:19.2]}
8... Bb7 {[%clk 0:03:01.2]} 9. Bd3 {[%clk 0:02:20.4]} 9... Nbd7 {[%clk
0:03:02.6]} 10. O-O {[%clk 0:02:21.2]} 10... c5 {[%clk 0:03:04.1]} 11. Qe2
{[%clk 0:02:21.8]} 11... Rc8 {[%clk 0:03:05]} 12. Rac1 {[%clk 0:02:21.8]} 12...
h6 {[%clk 0:03:04.1]} 13. Rfd1 {[%clk 0:02:18.4]} 13... cxd4 {[%clk 0:03:03.7]}
14. exd4 {[%clk 0:02:17]} 14... Bd6 {[%clk 0:02:59.1]} 15. Ne5 {[%clk
0:02:16.5]} 15... Qe7 {[%clk 0:02:57.8]} 16. a4 {[%clk 0:02:08.7]} 16... Ba3
{[%clk 0:02:52.3]} 17. Ndf3 {[%clk 0:02:00.5]} 17... Bxb2 {[%clk 0:02:44.7]} 18.
Qxb2 {[%clk 0:02:02.4]} 18... Rfd8 {[%clk 0:02:44.2]} 19. h3 {[%clk 0:01:54.4]}
19... Nb8 {[%clk 0:02:39.5]} 20. Qa1 {[%clk 0:01:24.1]} 20... Na6 {[%clk
0:02:37.3]} 21. a5 {[%clk 0:01:22.1]} 21... Nb4 {[%clk 0:02:32.9]} 22. Bb1
{[%clk 0:01:22.1]} 22... Qd6 {[%clk 0:02:13.1]} 23. Qa3 {[%clk 0:01:19.7]} 23...
Ne4 {[%clk 0:01:45.8]} 24. c5 {[%clk 0:00:55.4]} 24... bxc5 {[%clk 0:01:33.5]}
25. dxc5 {[%clk 0:00:57.3]} 25... Rxc5 {[%clk 0:01:31.4]} 26. Rxc5 {[%clk
0:00:57.8]} 26... Qxc5 {[%clk 0:01:18.7]} 27. Bxe4 {[%clk 0:00:57.9]} 27... f6
{[%clk 0:01:20.1]} 28. Ng6 {[%clk 0:00:50.5]} 28... Rc8 {[%clk 0:01:06.6]} 29.
Bb1 {[%clk 0:00:50.7]} 29... e5 {[%clk 0:01:04.1]} 30. Nfh4 {[%clk 0:00:47.7]}
30... e4 {[%clk 0:01:00.3]} 31. Nf5 {[%clk 0:00:47.5]} 31... Kh7 {[%clk
0:01:00.6]} 32. Nf4 {[%clk 0:00:42.3]} 32... g6 {[%clk 0:00:53]} 33. Ne3 {[%clk
0:00:38]} 33... f5 {[%clk 0:00:28.5]} 34. Ne6 {[%clk 0:00:37.4]} 34... Qd6
{[%clk 0:00:22.4]} 35. Nd4 {[%clk 0:00:34.9]} 35... Qc5 {[%clk 0:00:22.2]} 36.
g3 {[%clk 0:00:26.6]} 36... h5 {[%clk 0:00:22.1]} 37. h4 {[%clk 0:00:27.2]}
37... f4 {[%clk 0:00:21.5]} 38. Ne6 {[%clk 0:00:26.5]} 38... Qc3 {[%clk
0:00:19.8]} 39. Nxf4 {[%clk 0:00:24.8]} 39... d4 {[%clk 0:00:21.3]} 40. Neg2
{[%clk 0:00:20.4]} 40... e3 {[%clk 0:00:22.3]} 41. Bxg6+ {[%clk 0:00:19.8]}
41... Kh6 {[%clk 0:00:22.6]} 42. fxe3 {[%clk 0:00:21.1]} 42... dxe3 {[%clk
0:00:20.9]} 43. Bxh5 {[%clk 0:00:22.1]} 43... Bxg2 {[%clk 0:00:17.5]} 44. Nxg2
{[%clk 0:00:23.1]} 44... Kxh5 {[%clk 0:00:17.1]} 45. Re1 {[%clk 0:00:24.4]}
45... Nc2 {[%clk 0:00:17.1]} 46. Re2 {[%clk 0:00:22.6]} 46... Nxa3 {[%clk
0:00:17.9]} 47. Rxe3 {[%clk 0:00:21.9]} 47... Qxe3+ {[%clk 0:00:17.3]} 48. Nxe3
{[%clk 0:00:22.4]} 48... Rc3 {[%clk 0:00:18.8]} 0-1

[Event "*** Titled Tuesday Blitz"]
[Site "Chess.com"]
[Date "2018.04.03"]
[Round "8"]
[White "BartoszSocko"]
[Black "Kangoroo3000"]
[Result "1-0"]
[WhiteElo "2563"]
[BlackElo "2403"]
[TimeControl "180+2"]
[EndTime "14:45:41 PDT"]
[Termination "BartoszSocko won by resignation"]

1. e4 {[%clk 0:03:01.9]} 1... e6 {[%clk 0:02:59.8]} 2. d4 {[%clk 0:03:02.6]}
2... d5 {[%clk 0:03:01]} 3. exd5 {[%clk 0:03:04.1]} 3... exd5 {[%clk 0:03:01.8]}
4. Bd3 {[%clk 0:03:05.4]} 4... Bd6 {[%clk 0:03:00.9]} 5. Nc3 {[%clk 0:03:06.3]}
5... Nf6 {[%clk 0:03:01.7]} 6. Bg5 {[%clk 0:03:06.2]} 6... c6 {[%clk 0:03:01.9]}
7. Qf3 {[%clk 0:03:04.3]} 7... h6 {[%clk 0:02:56.5]} 8. Bxf6 {[%clk 0:03:04.8]}
8... Qxf6 {[%clk 0:02:57.1]} 9. Qxf6 {[%clk 0:03:05.9]} 9... gxf6 {[%clk
0:02:59]} 10. Nge2 {[%clk 0:03:01.6]} 10... Be6 {[%clk 0:02:54.5]} 11. Ng3
{[%clk 0:03:01.8]} 11... Nd7 {[%clk 0:02:46.6]} 12. Nf5 {[%clk 0:03:02.8]} 12...
Bc7 {[%clk 0:02:45.2]} 13. Ne2 {[%clk 0:02:57.3]} 13... O-O-O {[%clk 0:02:44.8]}
14. Kd2 {[%clk 0:02:49.1]} 14... Nb6 {[%clk 0:02:39.2]} 15. b3 {[%clk
0:02:47.4]} 15... h5 {[%clk 0:02:38.1]} 16. g3 {[%clk 0:02:37.8]} 16... Nd7
{[%clk 0:02:29.5]} 17. h4 {[%clk 0:02:37.8]} 17... c5 {[%clk 0:02:15.1]} 18. c3
{[%clk 0:02:36]} 18... c4 {[%clk 0:02:05.7]} 19. Bc2 {[%clk 0:02:34.9]} 19...
cxb3 {[%clk 0:02:01.6]} 20. axb3 {[%clk 0:02:36.8]} 20... Kb8 {[%clk 0:02:00]}
21. Nc1 {[%clk 0:02:07.7]} 21... b6 {[%clk 0:01:46.4]} 22. Ne3 {[%clk 0:02:06]}
22... Kb7 {[%clk 0:01:45.2]} 23. Nd3 {[%clk 0:02:01.2]} 23... Nb8 {[%clk
0:01:44.2]} 24. b4 {[%clk 0:01:50.6]} 24... Nc6 {[%clk 0:01:42.2]} 25. Ba4
{[%clk 0:01:43.8]} 25... Ne7 {[%clk 0:01:40.2]} 26. b5 {[%clk 0:01:44.9]} 26...
f5 {[%clk 0:01:28.8]} 27. Bb3 {[%clk 0:01:40.2]} 27... Ng6 {[%clk 0:01:28]} 28.
f4 {[%clk 0:01:41.3]} 28... Ne7 {[%clk 0:01:27.2]} 29. Ra2 {[%clk 0:01:27.3]}
29... Ng8 {[%clk 0:01:03]} 30. Rha1 {[%clk 0:01:26.4]} 30... Ra8 {[%clk
0:01:03.7]} 31. Bxd5+ {[%clk 0:01:21.3]} 31... Bxd5 {[%clk 0:01:00.1]} 32. Nxd5
{[%clk 0:01:23.2]} 32... Bd6 {[%clk 0:00:56.4]} 33. c4 {[%clk 0:01:23.3]} 33...
Ne7 {[%clk 0:00:51.7]} 34. Nxe7 {[%clk 0:01:21.7]} 34... Bxe7 {[%clk 0:00:53.6]}
35. c5 {[%clk 0:01:22.9]} 35... Rhg8 {[%clk 0:00:51.6]} 36. c6+ {[%clk 0:01:24]}
36... Kb8 {[%clk 0:00:52.1]} 37. Ne5 {[%clk 0:01:21.5]} 37... Bb4+ {[%clk
0:00:38.6]} 38. Kc2 {[%clk 0:01:16]} 38... a5 {[%clk 0:00:33.2]} 39. bxa6 {[%clk
0:01:07.2]} 39... Rxg3 {[%clk 0:00:33.7]} 40. Nxf7 {[%clk 0:00:34.7]} 40... Rf3
{[%clk 0:00:24.3]} 41. Rg1 {[%clk 0:00:31.3]} 41... Kc7 {[%clk 0:00:23.4]} 42.
Ne5 {[%clk 0:00:27.4]} 42... Rxf4 {[%clk 0:00:19.9]} 43. Rg7+ {[%clk 0:00:27.6]}
43... Kd6 {[%clk 0:00:21.2]} 44. Rd7+ {[%clk 0:00:24.2]} 44... Ke6 {[%clk
0:00:22.5]} 45. c7 {[%clk 0:00:19.3]} 45... Bd6 {[%clk 0:00:13.3]} 46. Rd8
{[%clk 0:00:18.4]} 46... Bxc7 {[%clk 0:00:12.6]} 47. Rxa8 {[%clk 0:00:19.1]}
47... Rxd4 {[%clk 0:00:14.2]} 48. Re8+ {[%clk 0:00:18.3]} 48... Kd5 {[%clk
0:00:15.1]} 49. a7 {[%clk 0:00:18.8]} 1-0

[Event "*** Titled Tuesday Blitz"]
[Site "Chess.com"]
[Date "2018.04.03"]
[Round "8"]
[White "Entilza"]
[Black "RojonR"]
[Result "0-1"]
[WhiteElo "2179"]
[BlackElo "2385"]
[TimeControl "180+2"]
[EndTime "14:45:45 PDT"]
[Termination "RojonR won by resignation"]

1. d4 {[%clk 0:03:01.9]} 1... Nf6 {[%clk 0:02:59.6]} 2. c4 {[%clk 0:03:02.6]}
2... e6 {[%clk 0:03:00.2]} 3. Nc3 {[%clk 0:03:03.4]} 3... Bb4 {[%clk 0:02:54.9]}
4. e3 {[%clk 0:03:03.4]} 4... b6 {[%clk 0:02:54.2]} 5. Ne2 {[%clk 0:02:52.6]}
5... Bb7 {[%clk 0:02:54.6]} 6. a3 {[%clk 0:02:53.8]} 6... Be7 {[%clk 0:02:53.2]}
7. d5 {[%clk 0:02:54.5]} 7... O-O {[%clk 0:02:51.2]} 8. g3 {[%clk 0:02:49.5]}
8... d6 {[%clk 0:02:40.2]} 9. Bg2 {[%clk 0:02:49.1]} 9... Nbd7 {[%clk 0:02:40]}
10. O-O {[%clk 0:02:48.1]} 10... e5 {[%clk 0:02:39.5]} 11. f4 {[%clk 0:02:46]}
11... a5 {[%clk 0:02:36.3]} 12. e4 {[%clk 0:02:42.5]} 12... c6 {[%clk
0:02:26.9]} 13. h3 {[%clk 0:02:39]} 13... cxd5 {[%clk 0:02:26.3]} 14. cxd5
{[%clk 0:02:35.4]} 14... Rc8 {[%clk 0:02:14.9]} 15. Be3 {[%clk 0:02:32.8]} 15...
Ba6 {[%clk 0:01:57.4]} 16. f5 {[%clk 0:02:31.1]} 16... Nc5 {[%clk 0:01:51.2]}
17. b4 {[%clk 0:02:28.2]} 17... Bxe2 {[%clk 0:01:48.1]} 18. Qxe2 {[%clk
0:02:04]} 18... Nb3 {[%clk 0:01:48.8]} 19. Na4 {[%clk 0:02:01.7]} 19... Nxa1
{[%clk 0:01:47.4]} 20. Rxa1 {[%clk 0:02:01]} 20... axb4 {[%clk 0:01:36.9]} 21.
axb4 {[%clk 0:01:57.1]} 21... Ra8 {[%clk 0:01:26.2]} 22. Ra2 {[%clk 0:01:45.4]}
22... Nd7 {[%clk 0:01:20.2]} 23. g4 {[%clk 0:01:42.6]} 23... Bg5 {[%clk
0:01:16.9]} 24. Bf2 {[%clk 0:01:42.2]} 24... Qc7 {[%clk 0:01:12]} 25. Bf1 {[%clk
0:01:42.1]} 25... Rfc8 {[%clk 0:01:06.2]} 26. h4 {[%clk 0:01:42.3]} 26... Bf4
{[%clk 0:01:06.3]} 27. g5 {[%clk 0:01:42.3]} 27... Qb7 {[%clk 0:00:37.2]} 28.
Kg2 {[%clk 0:01:39.7]} 28... Rc1 {[%clk 0:00:28.8]} 29. Qb5 {[%clk 0:01:37.3]}
29... h6 {[%clk 0:00:21.6]} 30. Nc3 {[%clk 0:01:25.1]} 30... Rxa2 {[%clk
0:00:12.8]} 31. Nxa2 {[%clk 0:01:24.9]} 31... Rc2 {[%clk 0:00:11.2]} 32. Qa4
{[%clk 0:01:20.7]} 32... Qc7 {[%clk 0:00:08]} 33. Bd3 {[%clk 0:01:19.9]} 33...
Rd2 {[%clk 0:00:06.2]} 34. Bb5 {[%clk 0:01:18.8]} 34... Nf8 {[%clk 0:00:06.8]}
35. Kf3 {[%clk 0:01:14.8]} 35... Qc2 {[%clk 0:00:05.4]} 36. Qxc2 {[%clk
0:01:07.4]} 36... Rxc2 {[%clk 0:00:06.8]} 37. Bxb6 {[%clk 0:01:08.4]} 37... Rxa2
{[%clk 0:00:07.7]} 38. Bc6 {[%clk 0:01:08.3]} 38... Rb2 {[%clk 0:00:06.8]} 39.
b5 {[%clk 0:01:08.9]} 39... hxg5 {[%clk 0:00:07.9]} 40. hxg5 {[%clk 0:01:08.8]}
40... Bxg5 {[%clk 0:00:08.7]} 41. Bc7 {[%clk 0:01:09.1]} 41... Be7 {[%clk
0:00:06.2]} 42. b6 {[%clk 0:01:09.3]} 42... g5 {[%clk 0:00:07.3]} 43. fxg6
{[%clk 0:01:09]} 43... fxg6 {[%clk 0:00:08]} 44. b7 {[%clk 0:01:10.2]} 44... Nd7
{[%clk 0:00:09.3]} 45. Bxd7 {[%clk 0:01:08.3]} 45... Rxb7 {[%clk 0:00:09.5]} 46.
Be6+ {[%clk 0:01:09.1]} 46... Kg7 {[%clk 0:00:10.6]} 47. Ba5 {[%clk 0:01:10]}
47... Rb3+ {[%clk 0:00:11.2]} 48. Kg4 {[%clk 0:01:09.5]} 48... Re3 {[%clk
0:00:11.5]} 49. Bd2 {[%clk 0:01:09]} 49... Rxe4+ {[%clk 0:00:12.2]} 50. Kf3
{[%clk 0:01:10.5]} 50... Rd4 {[%clk 0:00:12.5]} 51. Be3 {[%clk 0:01:11.9]} 51...
Ra4 {[%clk 0:00:13.2]} 52. Bf2 {[%clk 0:01:11.7]} 52... Bg5 {[%clk 0:00:13.8]}
53. Bg3 {[%clk 0:01:12]} 53... Kf6 {[%clk 0:00:14.5]} 54. Bf2 {[%clk 0:01:11.3]}
54... Ra3+ {[%clk 0:00:15.1]} 55. Ke2 {[%clk 0:01:11.7]} 55... Ra2+ {[%clk
0:00:14.8]} 56. Kf3 {[%clk 0:01:12.1]} 56... e4+ {[%clk 0:00:15.3]} 57. Kg3
{[%clk 0:01:13.2]} 57... Bf4+ {[%clk 0:00:11.7]} 58. Kxf4 {[%clk 0:01:13.7]}
58... Rxf2+ {[%clk 0:00:13.1]} 59. Kxe4 {[%clk 0:01:15.4]} 59... g5 {[%clk
0:00:11.7]} 60. Ke3 {[%clk 0:01:16.5]} 60... Rf4 {[%clk 0:00:12.2]} 61. Bd7
{[%clk 0:01:16.3]} 61... Ke5 {[%clk 0:00:12.9]} 62. Be6 {[%clk 0:01:17.3]} 62...
g4 {[%clk 0:00:13.6]} 0-1

[Event "*** Titled Tuesday Blitz"]
[Site "Chess.com"]
[Date "2018.04.03"]
[Round "8"]
[White "nickmatta"]
[Black "r31415"]
[Result "1-0"]
[WhiteElo "2305"]
[BlackElo "2200"]
[TimeControl "180+2"]
[EndTime "14:45:52 PDT"]
[Termination "nickmatta won by resignation"]

1. d4 {[%clk 0:03:01.9]} 1... d6 {[%clk 0:03:00.1]} 2. Nf3 {[%clk 0:03:00.2]}
2... g6 {[%clk 0:03:00.9]} 3. c4 {[%clk 0:03:00.9]} 3... f5 {[%clk 0:03:01.1]}
4. g3 {[%clk 0:02:51.6]} 4... Nf6 {[%clk 0:03:02]} 5. Bg2 {[%clk 0:02:53.1]}
5... Bg7 {[%clk 0:03:03.6]} 6. O-O {[%clk 0:02:54.7]} 6... O-O {[%clk
0:03:05.2]} 7. b3 {[%clk 0:02:55.4]} 7... e5 {[%clk 0:02:37.3]} 8. dxe5 {[%clk
0:02:31.7]} 8... dxe5 {[%clk 0:02:39.2]} 9. Ba3 {[%clk 0:02:32.8]} 9... Re8
{[%clk 0:02:25.3]} 10. Nc3 {[%clk 0:02:16.6]} 10... e4 {[%clk 0:02:13.8]} 11.
Ng5 {[%clk 0:01:53.9]} 11... Nc6 {[%clk 0:01:25.6]} 12. Qxd8 {[%clk 0:01:37.2]}
12... Rxd8 {[%clk 0:01:25.5]} 13. Nb5 {[%clk 0:01:35.3]} 13... Ne8 {[%clk
0:01:18]} 14. Rac1 {[%clk 0:01:24.1]} 14... a6 {[%clk 0:01:00.4]} 15. Nc3 {[%clk
0:01:25.1]} 15... Rd2 {[%clk 0:00:56.7]} 16. f3 {[%clk 0:00:58.8]} 16... Bxc3
{[%clk 0:00:46.2]} 17. Rxc3 {[%clk 0:00:59.7]} 17... Rxa2 {[%clk 0:00:47.7]} 18.
Bc1 {[%clk 0:00:54.7]} 18... Nd4 {[%clk 0:00:44.8]} 19. Re3 {[%clk 0:00:41.3]}
19... Rxe2 {[%clk 0:00:32]} 20. fxe4 {[%clk 0:00:37.1]} 20... fxe4 {[%clk
0:00:22.6]} 21. Rd1 {[%clk 0:00:31.5]} 21... Rxe3 {[%clk 0:00:19.7]} 22. Bxe3
{[%clk 0:00:33.4]} 22... Ne6 {[%clk 0:00:19.7]} 23. Nxe4 {[%clk 0:00:31.4]}
23... c6 {[%clk 0:00:14.6]} 24. Bh6 {[%clk 0:00:16.5]} 24... Nf8 {[%clk
0:00:08.7]} 25. Rd8 {[%clk 0:00:14.6]} 25... Kf7 {[%clk 0:00:04.2]} 26. Bxf8
{[%clk 0:00:06.2]} 26... Kxf8 {[%clk 0:00:05.4]} 27. Nd6 {[%clk 0:00:07]} 27...
Ke7 {[%clk 0:00:07]} 28. Rxc8 {[%clk 0:00:08.4]} 28... Rxc8 {[%clk 0:00:04.1]}
29. Nxc8+ {[%clk 0:00:10.3]} 29... Kd7 {[%clk 0:00:03.5]} 30. Nb6+ {[%clk
0:00:11.8]} 30... Kc7 {[%clk 0:00:04.4]} 31. c5 {[%clk 0:00:10.1]} 31... Ng7
{[%clk 0:00:03.5]} 32. Bh3 {[%clk 0:00:09.4]} 32... Nh5 {[%clk 0:00:03.8]} 33.
Kf2 {[%clk 0:00:09.1]} 33... Nf6 {[%clk 0:00:04.9]} 34. Ke3 {[%clk 0:00:09]}
34... g5 {[%clk 0:00:04.5]} 35. Bf5 {[%clk 0:00:09.1]} 35... h5 {[%clk
0:00:05.2]} 36. Kd4 {[%clk 0:00:09.2]} 36... h4 {[%clk 0:00:06.4]} 37. Ke5
{[%clk 0:00:09.5]} 37... hxg3 {[%clk 0:00:04.2]} 38. hxg3 {[%clk 0:00:11.4]}
38... Nh5 {[%clk 0:00:05.5]} 39. g4 {[%clk 0:00:10.6]} 39... Ng3 {[%clk
0:00:06.8]} 40. Kf6 {[%clk 0:00:10.2]} 40... Ne2 {[%clk 0:00:06.6]} 41. Kxg5
{[%clk 0:00:08.1]} 41... Nd4 {[%clk 0:00:08.1]} 42. b4 {[%clk 0:00:03.5]} 42...
a5 {[%clk 0:00:08.7]} 43. bxa5 {[%clk 0:00:04]} 43... Nb3 {[%clk 0:00:10]} 44.
Nc4 {[%clk 0:00:04.1]} 44... Nxc5 {[%clk 0:00:10.4]} 45. Kh6 {[%clk 0:00:05.5]}
45... Kd8 {[%clk 0:00:09.5]} 46. g5 {[%clk 0:00:06.8]} 46... Ke7 {[%clk
0:00:10.4]} 47. g6 {[%clk 0:00:07.6]} 47... Nd7 {[%clk 0:00:03.6]} 48. Bxd7
{[%clk 0:00:08.4]} 48... Kxd7 {[%clk 0:00:04.6]} 49. g7 {[%clk 0:00:09.9]} 49...
Kc7 {[%clk 0:00:06.5]} 50. g8=Q {[%clk 0:00:11.4]} 50... b5 {[%clk 0:00:08.2]}
51. axb6+ {[%clk 0:00:12.2]} 1-0

[Event "*** Titled Tuesday Blitz"]
[Site "Chess.com"]
[Date "2018.04.03"]
[Round "8"]
[White "abubakrtagelsir"]
[Black "comedy_of_errors"]
[Result "1/2-1/2"]
[WhiteElo "2255"]
[BlackElo "2424"]
[TimeControl "180+2"]
[EndTime "14:46:04 PDT"]
[Termination "Game drawn - insufficient material"]

1. e4 {[%clk 0:02:59.1]} 1... e6 {[%clk 0:03:00]} 2. d4 {[%clk 0:02:59.2]} 2...
d5 {[%clk 0:03:01.9]} 3. Nc3 {[%clk 0:02:58.9]} 3... dxe4 {[%clk 0:03:03.1]} 4.
Nxe4 {[%clk 0:02:51.7]} 4... Bd7 {[%clk 0:03:03.5]} 5. Nf3 {[%clk 0:02:34]} 5...
Bc6 {[%clk 0:03:04.5]} 6. Bd3 {[%clk 0:02:23.4]} 6... Nd7 {[%clk 0:03:05]} 7.
O-O {[%clk 0:02:22.6]} 7... Ngf6 {[%clk 0:03:06.9]} 8. Ng3 {[%clk 0:02:15.5]}
8... g6 {[%clk 0:03:07.5]} 9. c4 {[%clk 0:02:07.6]} 9... Bg7 {[%clk 0:03:08.3]}
10. b4 {[%clk 0:02:00.2]} 10... O-O {[%clk 0:02:58.9]} 11. b5 {[%clk 0:01:50.6]}
11... Bxf3 {[%clk 0:02:59.3]} 12. Qxf3 {[%clk 0:01:48.9]} 12... e5 {[%clk
0:02:58.2]} 13. Qxb7 {[%clk 0:01:42.2]} 13... exd4 {[%clk 0:02:57.9]} 14. Ba3
{[%clk 0:01:39.2]} 14... Re8 {[%clk 0:02:58.4]} 15. c5 {[%clk 0:01:39.6]} 15...
Ne5 {[%clk 0:02:56.7]} 16. Rad1 {[%clk 0:01:35.9]} 16... Qd5 {[%clk 0:02:52.7]}
17. Qxd5 {[%clk 0:01:34]} 17... Nxd5 {[%clk 0:02:54.6]} 18. Be4 {[%clk
0:01:34.8]} 18... Rad8 {[%clk 0:02:55.2]} 19. Rxd4 {[%clk 0:01:33.6]} 19... Nf3+
{[%clk 0:02:46.9]} 20. gxf3 {[%clk 0:01:23.6]} 20... Bxd4 {[%clk 0:02:47.1]} 21.
Rd1 {[%clk 0:01:23.8]} 21... Nc3 {[%clk 0:02:47.1]} 22. Rf1 {[%clk 0:01:12.4]}
22... Nxb5 {[%clk 0:02:24.5]} 23. Bb4 {[%clk 0:01:11.9]} 23... Bc3 {[%clk
0:02:23.7]} 24. Bxc3 {[%clk 0:00:58.9]} 24... Nxc3 {[%clk 0:02:25.6]} 25. Bc6
{[%clk 0:00:57.3]} 25... Re5 {[%clk 0:02:22.9]} 26. f4 {[%clk 0:00:44.7]} 26...
Rxc5 {[%clk 0:02:23.3]} 27. Bf3 {[%clk 0:00:44.4]} 27... Rd3 {[%clk 0:02:22.6]}
28. Kg2 {[%clk 0:00:43.8]} 28... Nxa2 {[%clk 0:02:22]} 29. Ra1 {[%clk 0:00:41]}
29... Rd2 {[%clk 0:02:19.1]} 30. Ne4 {[%clk 0:00:40.6]} 30... Rcc2 {[%clk
0:02:20.3]} 31. Nxd2 {[%clk 0:00:39]} 31... Rxd2 {[%clk 0:02:22.2]} 32. Bc6
{[%clk 0:00:33.8]} 32... a5 {[%clk 0:02:22.5]} 33. Bb5 {[%clk 0:00:28.7]} 33...
c5 {[%clk 0:02:21.4]} 34. Bc4 {[%clk 0:00:29.3]} 34... Nc3 {[%clk 0:02:14.1]}
35. Rxa5 {[%clk 0:00:29.1]} 35... Ne4 {[%clk 0:02:11.7]} 36. Kf3 {[%clk
0:00:22.7]} 36... Rd4 {[%clk 0:02:07.3]} 37. Ra8+ {[%clk 0:00:20.2]} 37... Kg7
{[%clk 0:02:07.3]} 38. Bb5 {[%clk 0:00:17.7]} 38... f5 {[%clk 0:02:05.5]} 39.
Rc8 {[%clk 0:00:17.1]} 39... Rd2 {[%clk 0:02:04.6]} 40. Be2 {[%clk 0:00:15.4]}
40... Rc2 {[%clk 0:02:01.2]} 41. Ke3 {[%clk 0:00:14.5]} 41... Rc3+ {[%clk
0:02:00.7]} 42. Bd3 {[%clk 0:00:15.4]} 42... Nxf2 {[%clk 0:02:01.7]} 43. Kxf2
{[%clk 0:00:15.7]} 43... Rxd3 {[%clk 0:02:03.1]} 44. Rxc5 {[%clk 0:00:16.5]}
44... Kh6 {[%clk 0:02:04.4]} 45. Rc7 {[%clk 0:00:16.3]} 45... Rd4 {[%clk
0:02:03.4]} 46. Kg3 {[%clk 0:00:16.1]} 46... Ra4 {[%clk 0:02:04.9]} 47. Kf3
{[%clk 0:00:15.5]} 47... Ra3+ {[%clk 0:02:05.9]} 48. Kg2 {[%clk 0:00:16]} 48...
Ra4 {[%clk 0:01:58.9]} 49. Kg3 {[%clk 0:00:16.4]} 49... Re4 {[%clk 0:01:58.3]}
50. Rb7 {[%clk 0:00:15.4]} 50... Re8 {[%clk 0:01:56.8]} 51. Rc7 {[%clk
0:00:15.4]} 51... Rh8 {[%clk 0:01:58.2]} 52. Kh4 {[%clk 0:00:16.5]} 52... Ra8
{[%clk 0:01:58.6]} 53. Kg3 {[%clk 0:00:17.3]} 53... Ra1 {[%clk 0:01:58.7]} 54.
Rb7 {[%clk 0:00:16.3]} 54... Rg1+ {[%clk 0:01:59.5]} 55. Kf2 {[%clk 0:00:16.8]}
55... Rg4 {[%clk 0:02:01]} 56. Kf3 {[%clk 0:00:17.8]} 56... g5 {[%clk
0:01:53.4]} 57. fxg5+ {[%clk 0:00:18.5]} 57... Rxg5 {[%clk 0:01:55.3]} 58. Kf4
{[%clk 0:00:19.1]} 58... Rh5 {[%clk 0:01:55.3]} 59. h4 {[%clk 0:00:19.2]} 59...
Kg6 {[%clk 0:01:55.5]} 60. Rb6+ {[%clk 0:00:19.1]} 60... Kf7 {[%clk 0:01:56.9]}
61. Rb7+ {[%clk 0:00:20.2]} 61... Ke6 {[%clk 0:01:58.2]} 62. Rb6+ {[%clk
0:00:21.2]} 62... Kd5 {[%clk 0:01:58.8]} 63. Rb5+ {[%clk 0:00:22.1]} 63... Ke6
{[%clk 0:02:00.2]} 64. Rb6+ {[%clk 0:00:23.2]} 64... Kd7 {[%clk 0:02:01.1]} 65.
Rb7+ {[%clk 0:00:21.8]} 65... Kc6 {[%clk 0:01:57.4]} 66. Rf7 {[%clk 0:00:21.6]}
66... Rxh4+ {[%clk 0:01:58.2]} 67. Kxf5 {[%clk 0:00:22]} 67... Kd6 {[%clk
0:01:59.5]} 68. Kg5 {[%clk 0:00:21.6]} 68... Rh1 {[%clk 0:01:59.1]} 69. Rf6+
{[%clk 0:00:22.4]} 69... Ke5 {[%clk 0:02:00.2]} 70. Rf2 {[%clk 0:00:20.1]} 70...
h5 {[%clk 0:01:58.7]} 71. Re2+ {[%clk 0:00:20.5]} 71... Kd4 {[%clk 0:01:59.5]}
72. Ra2 {[%clk 0:00:20.5]} 72... Ke3 {[%clk 0:01:59.4]} 73. Ra4 {[%clk 0:00:21]}
73... Kf3 {[%clk 0:01:57.1]} 74. Rh4 {[%clk 0:00:21.5]} 74... Rxh4 {[%clk
0:01:57.7]} 75. Kxh4 {[%clk 0:00:22.4]} 75... Kg2 {[%clk 0:01:59.6]} 76. Kxh5
{[%clk 0:00:23.4]} 1/2-1/2